bitfinex/quotes_ETHUSD_20260308
["timestamp","ask_amount","ask_price","bid_price","bid_amount"]
[1772985603799,0.45093028,1943.2,1942.4,0.47055863]
[1772985604000,1.398,1943.2,1942.4,0.47055863]
[1772985604331,0.45093028,1943.1,1942.2,1.55490978]
[1772985604534,0.45093028,1943.1,1942.3,0.47055863]
[1772985604736,0.45093028,1943.1,1942.2,1.55490978]
[1772985605102,0.45116031,1942.9,1942.2,1.55490978]
[1772985606136,0.45116031,1942.9,1942.2,0.26771395]
[1772985607220,0.45116031,1942.7,1942.2,0.26771395]
[1772985607419,0.45116031,1942.5,1942.2,0.26771395]
[1772985609355,0.45116031,1942.3,1942.2,0.19938685]
[1772985609520,0.45116031,1942.3,1942.0,0.00153886]
[1772985611461,1.73836039,1942.2,1942.0,0.00153886]
[1772985614168,1.454,1942.1,1942.0,0.00153886]
[1772985614329,1.454,1942.1,1942.0,0.00253886]
[1772985615536,3.19242667,1942.1,1942.0,0.00253886]
[1772985616175,3.19242667,1942.1,1941.5,0.46645981]
[1772985616176,0.45116031,1942.0,1941.5,0.46645981]
[1772985616464,0.45116031,1942.0,1941.3,0.46645981]
[1772985617738,1.73855924,1941.9,1941.4,0.46645981]
[1772985619048,0.45116031,1941.8,1941.4,0.46645981]
[1772985619860,1.28753154,1941.7,1941.4,0.46645981]
[1772985620566,3.21169185,1941.7,1941.2,1.75431679]
[1772985620772,3.21169185,1941.7,1941.2,0.46645981]
[1772985621473,0.45116031,1942.4,1941.2,0.46645981]
[1772985621676,1.476,1942.2,1941.2,0.46645981]
[1772985622576,1.28726636,1942.1,1941.4,0.46645981]
[1772985623590,3.21441327,1942.2,1941.4,0.46645981]
[1772985623882,5.14865937,1942.3,1941.4,0.46645981]
[1772985623883,1.476,1942.1,1941.4,0.46645981]
[1772985625253,1.73834604,1942.3,1941.5,1.28766417]
[1772985625454,3.21725384,1942.4,1941.6,0.46645981]
[1772985625672,0.45116031,1942.3,1941.6,0.46645981]
[1772985626573,0.001,1942.0,1941.6,0.46645981]
[1772985630083,0.001,1942.0,1941.8,0.46645981]
[1772985632181,0.001,1942.0,1941.8,1.28743817]
[1772985632381,0.45216031,1942.0,1941.7,0.46645981]
[1772985632756,0.45216031,1942.0,1941.6,0.48254301]
[1772985633482,0.001,1942.0,1941.6,0.48254301]
[1772985634188,0.46470766,1942.0,1941.6,1.77011091]
[1772985634391,0.001,1942.0,1941.7,0.48254301]
[1772985636288,0.001,1942.0,1941.8,1.28746523]
[1772985636592,0.001,1942.0,1941.8,1.77000824]
[1772985637163,0.001,1942.0,1941.8,0.48254301]
[1772985638488,0.001,1942.0,1941.9,1.76994194]
[1772985638687,0.001,1942.0,1941.9,0.48254301]
[1772985640897,0.46520766,1942.2,1941.9,0.48254301]
[1772985641194,0.46520766,1942.2,1941.9,1.76993862]
[1772985641422,0.46520766,1942.2,1941.9,0.48254301]
[1772985642195,0.46520766,1942.2,1941.9,1.76990268]
[1772985642699,0.46520766,1942.2,1941.9,0.48254301]
[1772985643793,0.46520766,1942.2,1941.9,1.76992002]
[1772985643995,0.46520766,1942.2,1941.9,0.48254301]
[1772985644301,0.46370766,1942.1,1941.8,0.48254301]
[1772985644501,0.46570766,1942.2,1941.8,1.76999513]
[1772985645200,0.46570766,1942.2,1941.8,0.48254301]
[1772985645404,0.46570766,1942.2,1941.8,1.77000731]
[1772985647810,0.46570766,1942.2,1941.9,0.48254301]
[1772985648104,0.002,1942.2,1941.9,0.48254301]
[1772985650114,0.46570766,1942.2,1941.9,1.76993841]
[1772985650401,0.46570766,1942.2,1941.9,1.2873954]
[1772985650575,0.46570766,1942.2,1941.8,1.28745506]
[1772985651409,0.46570766,1942.2,1941.8,1.76999807]
[1772985652106,0.46370766,1942.1,1941.7,0.001]
[1772985652476,0.46370766,1942.1,1941.7,0.48354301]
[1772985653118,0.46370766,1942.1,1942.0,0.001]
[1772985653498,0.46570766,1942.1,1942.0,0.001]
[1772985659328,1.28926636,1942.1,1941.9,0.001]
[1772985659532,0.46370766,1942.0,1941.9,0.001]
[1772985660526,0.46570766,1942.1,1941.9,0.001]
[1772985660725,0.46370766,1942.0,1941.9,0.001]
[1772985663703,0.46370766,1942.0,1941.7,0.001]
[1772985664396,1.75104277,1942.0,1941.7,0.46909587]
[1772985664828,0.46370766,1942.0,1941.7,1.75662252]
[1772985665724,1.75105474,1942.0,1941.7,0.46909587]
[1772985665921,0.46370766,1942.0,1941.7,0.46909587]
[1772985666310,1.75104066,1942.0,1941.7,0.46909587]
[1772985669732,0.45163557,1941.9,1941.8,0.001]
[1772985670104,0.45163557,1941.9,1941.5,1.74491337]
[1772985671133,0.45163557,1941.9,1941.5,0.45729101]
[1772985671333,0.45163557,1942.0,1941.6,0.45619101]
[1772985671539,1.47,1941.9,1941.7,0.45619101]
[1772985673836,1.92463557,1942.0,1941.7,1.74371844]
[1772985674209,1.473,1942.0,1941.8,0.45619101]
[1772985675341,0.45363557,1942.1,1941.8,0.45619101]
[1772985675543,1.477,1942.1,1941.8,0.45619101]
[1772985676146,1.92863557,1942.1,1941.8,0.45619101]
[1772985676643,0.45363557,1942.1,1941.8,1.74362322]
[1772985678033,0.45363557,1942.1,1941.8,0.45619101]
[1772985678841,0.45363557,1942.1,1941.8,1.74365241]
[1772985679010,0.45363557,1942.1,1941.7,1.74372255]
[1772985679213,0.45163557,1942.0,1941.7,0.45619101]
[1772985680237,2.76525342,1942.2,1941.7,0.45619101]
[1772985680238,0.002,1942.2,1941.7,0.45619101]
[1772985680540,0.002,1942.4,1941.7,0.45619101]
[1772985681240,0.002,1942.4,1941.9,0.45619101]
[1772985682046,0.002,1942.0,1941.9,0.45619101]
[1772985682343,0.002,1942.4,1941.9,0.45619101]
[1772985683038,6.59746807,1943.1,1942.0,0.45619101]
[1772985683039,0.002,1942.3,1942.0,0.45619101]
[1772985683240,1.73986374,1943.0,1942.2,0.45619101]
[1772985684439,0.45317443,1943.0,1942.2,0.45619101]
[1772985685247,0.45317443,1943.0,1942.3,1.28713381]
[1772985685419,0.45317443,1943.0,1942.4,0.45619101]
[1772985686048,0.45163557,1942.9,1942.0,0.45619101]
[1772985686425,0.00153886,1943.0,1942.2,0.45619101]
[1772985687543,0.45317443,1943.0,1942.4,0.45619101]
[1772985690347,0.45317443,1943.0,1942.5,1.28700128]
[1772985690562,0.45317443,1943.0,1942.5,1.74319229]
[1772985691151,0.45163557,1942.9,1942.5,0.45619101]
[1772985692659,0.45163557,1942.9,1942.5,1.74317577]
[1772985693154,0.45163557,1942.9,1942.6,0.45858302]
[1772985693456,1.75503654,1943.0,1942.6,0.45858302]
[1772985693662,0.46682196,1942.9,1942.6,0.45858302]
[1772985694858,1.75356453,1942.9,1942.6,0.45858302]
[1772985695026,1.28674257,1942.9,1942.5,1.28698476]
[1772985695233,0.46682196,1942.8,1942.4,1.74560487]
[1772985695669,0.46682196,1942.8,1942.4,1.28702185]
[1772985695856,0.46682196,1942.8,1942.4,1.74560487]
[1772985697063,0.46682196,1942.8,1942.5,2.28699619]
[1772985697558,0.46682196,1942.8,1942.5,2.74557921]
[1772985699061,0.002,1942.9,1942.6,0.45858302]
[1772985699359,0.46882196,1942.9,1942.5,2.74557099]
[1772985701546,1.75559083,1942.9,1942.5,1.45858302]
[1772985702776,0.46682196,1942.8,1942.5,1.45858302]
[1772985702976,0.46682196,1942.8,1942.0,0.45858302]
[1772985703280,0.46682196,1942.8,1942.1,0.45858302]
[1772985703281,1.465,1942.8,1942.1,0.45858302]
[1772985703446,0.46682196,1942.7,1942.1,0.45858302]
[1772985703774,0.46682196,1942.6,1942.3,0.45858302]
[1772985705368,0.46682196,1942.6,1942.1,0.45858302]
[1772985706175,0.46682196,1942.4,1941.9,0.45858302]
[1772985708170,1.7538895,1942.4,1942.3,0.001]
[1772985709376,0.46682196,1942.3,1941.8,1.74702697]
[1772985710154,0.46682196,1942.3,1942.0,1.28733264]
[1772985710482,1.75372383,1942.7,1942.1,0.45858302]
[1772985711549,0.46682196,1942.7,1942.1,0.45858302]
[1772985712170,0.46682196,1942.7,1942.2,1.28720008]
[1772985712372,0.002,1942.8,1942.3,0.45858302]
[1772985714485,0.002,1942.8,1942.5,0.45858302]
[1772985716462,0.002,1942.8,1942.6,1.28693503]
[1772985716664,0.002,1942.8,1942.5,1.74555098]
[1772985716880,0.46882196,1942.8,1942.5,1.74555098]
[1772985718058,0.002,1942.8,1942.5,1.74555098]
[1772985720061,0.002,1942.8,1942.6,0.45858302]
[1772985721203,0.22852212,1943.0,1942.7,1.28686879]
[1772985721508,1.51520167,1943.0,1942.7,0.45858302]
[1772985721698,0.002,1942.7,1942.6,0.45858302]
[1772985721886,0.22498326,1942.9,1942.6,0.45858302]
[1772985724195,0.22498326,1942.9,1942.4,0.49985427]
[1772985724396,0.22498326,1942.9,1942.2,0.001]
[1772985724694,0.22498326,1942.9,1942.2,1.76614246]
[1772985725097,0.22498326,1942.9,1942.2,0.001]
[1772985725597,0.22498326,1942.7,1942.2,0.001]
[1772985726499,0.22498326,1942.5,1942.2,0.001]
[1772985727086,0.22498326,1942.5,1942.0,0.001]
[1772985727691,0.22498326,1942.5,1942.0,0.47894238]
[1772985727904,0.22498326,1942.5,1942.0,0.42894238]
[1772985728701,0.27298326,1942.3,1942.0,0.42894238]
[1772985729025,0.27298326,1942.3,1942.0,1.71621119]
[1772985729210,0.27298326,1942.5,1942.0,1.71621119]
[1772985729793,0.27298326,1942.5,1941.9,1.28836967]
[1772985729994,0.27298326,1942.5,1941.9,0.001]
[1772985730215,0.27298326,1942.5,1941.9,1.28838634]
[1772985731118,0.27298326,1942.3,1941.9,0.001]
[1772985732393,0.27298326,1942.3,1941.9,0.47894238]
[1772985732589,0.27298326,1942.7,1941.9,0.47894238]
[1772985733823,0.27298326,1942.7,1942.1,0.47794238]
[1772985734296,1.55985605,1942.7,1942.1,0.47794238]
[1772985734497,0.27298326,1942.6,1942.1,0.47794238]
[1772985735998,0.27298326,1942.6,1942.2,1.76514246]
[1772985736821,0.27298326,1942.6,1942.3,0.47794238]
[1772985736989,3.02083409,1942.8,1942.3,0.47794238]
[1772985737419,0.27298326,1942.7,1942.3,0.47794238]
[1772985738724,0.002,1942.8,1942.4,0.47794238]
[1772985739402,1.28880362,1942.8,1942.4,0.47794238]
[1772985739929,0.002,1942.8,1942.4,0.47794238]
[1772985740431,1.28880531,1942.8,1942.4,0.47794238]
[1772985741424,0.002,1942.8,1942.4,0.47794238]
[1772985741627,0.002,1942.8,1942.4,1.7649953]
[1772985742224,0.002,1942.8,1942.4,0.47794238]
[1772985742419,0.002,1942.8,1942.4,1.76499988]
[1772985742726,0.002,1942.8,1942.4,0.47794238]
[1772985744328,0.002,1942.8,1942.4,1.76499927]
[1772985744907,0.002,1942.8,1942.5,0.5038888]
[1772985747823,0.002,1942.7,1942.5,0.5038888]
[1772985748736,0.002,1942.7,1942.4,0.5038888]
[1772985752934,0.002,1942.7,1942.3,1.79095636]
[1772985753137,0.002,1942.7,1942.4,0.5038888]
[1772985755241,1e-08,1942.9,1942.5,0.5038888]
[1772985758113,1e-08,1942.9,1942.7,0.51145027]
[1772985760144,0.002,1942.8,1942.7,0.51145027]
[1772985761839,0.002,1942.8,1942.7,1.79831906]
[1772985762147,1e-08,1942.9,1942.7,1.79831906]
[1772985763343,1e-08,1942.9,1942.7,0.51145027]
[1772985764943,1e-08,1942.9,1942.7,1.7982981]
[1772985765945,1e-08,1942.9,1942.8,0.51145027]
[1772985766652,1e-08,1942.9,1942.4,1.28702322]
[1772985766859,1e-08,1942.9,1942.5,0.51145027]
[1772985767158,1e-08,1942.9,1942.6,0.51145027]
[1772985770646,1e-08,1942.9,1942.6,1.79836524]
[1772985770829,1e-08,1942.9,1942.6,0.51145027]
[1772985771841,0.002,1942.8,1942.6,0.51145027]
[1772985772655,0.002,1942.8,1942.7,0.51145027]
[1772985774757,0.00353886,1943.0,1942.8,0.51145027]
[1772985775329,0.00353886,1943.0,1942.8,1.79823713]
[1772985778079,0.00353886,1943.0,1942.9,0.51145027]
[1772985778368,1.38,1943.4,1942.9,0.51145027]
[1772985779430,1.28614054,1943.8,1942.9,0.51145027]
[1772985779633,1.28614054,1943.8,1943.1,0.51145027]
[1772985779943,1.28610127,1943.9,1943.1,0.51145027]
[1772985780160,1.392,1943.8,1943.1,0.51145027]
[1772985781279,1.28610127,1943.9,1943.1,0.51145027]
[1772985781465,1.4,1943.7,1943.1,0.51145027]
[1772985781774,2.68623552,1943.7,1943.2,1.79798793]
[1772985782081,0.00153886,1944.0,1943.3,0.51145027]
[1772985782370,1.28754934,1944.0,1943.3,0.51145027]
[1772985783485,1.41,1943.9,1943.3,0.51145027]
[1772985784122,1.28614054,1943.8,1943.3,1.79787513]
[1772985784583,1.28614054,1943.8,1943.4,0.51145027]
[1772985784787,0.002,1943.7,1943.4,0.51145027]
[1772985785444,0.002,1943.7,1942.9,0.51145027]
[1772985785653,0.002,1943.7,1943.0,0.51145027]
[1772985786381,0.002,1943.7,1943.2,0.51145027]
[1772985789185,0.00353886,1944.0,1943.4,0.51145027]
[1772985790586,0.40118571,1944.4,1943.4,0.50968084]
[1772985790755,1.68693251,1944.4,1943.4,0.50968084]
[1772985791278,1.68693251,1944.4,1943.6,0.50968084]
[1772985791680,0.40118571,1944.4,1943.6,0.50968084]
[1772985791869,1.68694919,1944.4,1943.6,0.50968084]
[1772985793185,1.68694919,1944.4,1943.6,1.79592448]
[1772985793687,1.68694065,1944.4,1943.7,0.50968084]
[1772985794792,0.40118571,1944.4,1943.7,0.50968084]
[1772985795111,1.68693449,1944.4,1943.7,0.50968084]
[1772985795462,1.68693449,1944.4,1943.9,0.50968084]
[1772985796980,1.68693449,1944.4,1943.8,0.50968084]
[1772985797675,1.68693449,1944.4,1943.8,1.79577241]
[1772985797998,0.40118571,1944.4,1943.9,0.50968084]
[1772985798210,3.11194841,1944.4,1943.9,0.50968084]
[1772985798570,3.10094841,1944.4,1943.9,0.50968084]
[1772985798770,0.002,1944.3,1943.9,0.50968084]
[1772985799123,0.002,1944.3,1943.7,0.50968084]
[1772985799278,0.002,1944.3,1943.7,1.79586091]
[1772985799693,0.002,1944.3,1943.8,0.50968084]
[1772985800076,0.002,1944.3,1943.9,0.50968084]
[1772985800267,0.002,1944.6,1943.9,0.50968084]
[1772985800268,2.7086573,1944.6,1943.9,0.50968084]
[1772985800667,2.7076573,1944.6,1943.9,0.50968084]
[1772985801387,2.7076573,1944.6,1943.7,5.14472988]
[1772985801388,3.73669883,1944.6,1943.7,0.50968084]
[1772985801706,3.73669883,1944.6,1943.8,0.50968084]
[1772985801707,2.31669883,1944.6,1943.8,0.50968084]
[1772985801869,2.7116573,1944.6,1943.8,0.50968084]
[1772985802069,2.7116573,1944.6,1943.9,0.50968084]
[1772985802300,1.425,1944.5,1943.9,0.50968084]
[1772985803098,1.2876573,1944.6,1943.9,0.50968084]
[1772985803099,1.428,1944.4,1943.9,0.50968084]
[1772985803468,1.428,1944.4,1943.8,0.50968084]
[1772985804077,1.2858098,1944.3,1943.8,0.50968084]
[1772985804299,1.2858098,1944.3,1943.3,0.50968084]
[1772985804464,1.2858098,1944.3,1943.4,0.50968084]
[1772985805072,1.2858098,1944.3,1943.8,1.0]
[1772985806702,1.2858098,1944.3,1943.8,1.50968084]
[1772985807024,1.2858098,1944.3,1943.9,0.50968084]
[1772985807025,1.436,1944.3,1943.9,0.50968084]
[1772985807507,1.28567755,1944.5,1943.9,0.50968084]
[1772985807508,1.436,1944.4,1943.9,0.50968084]
[1772985807879,1.28567755,1944.5,1943.9,0.50968084]
[1772985808204,5.14467697,1944.6,1943.9,0.50968084]
[1772985808205,1.28761839,1944.6,1943.9,0.50968084]
[1772985808797,1.28761839,1944.6,1944.1,0.50968084]
[1772985809198,0.002,1944.6,1944.1,0.50968084]
[1772985811886,0.002,1944.6,1943.9,0.50968084]
[1772985813133,0.002,1944.5,1943.9,0.50968084]
[1772985815687,0.002,1944.5,1944.0,0.50968084]
[1772985816001,1.448,1944.5,1944.0,0.50968084]
[1772985816402,1.448,1944.5,1943.8,1.51068084]
[1772985816605,1.448,1944.5,1943.8,1.001]
[1772985816805,2.47704153,1944.5,1943.8,1.001]
[1772985817519,1.02904153,1944.3,1943.8,1.001]
[1772985817725,1.28587593,1944.2,1943.8,1.001]
[1772985818316,1.28587593,1944.2,1943.3,1.78854247]
[1772985818521,1.28587593,1944.2,1943.4,0.50211937]
[1772985819935,1.449,1944.1,1943.6,0.50211937]
[1772985820420,1.449,1944.1,1943.4,0.50211937]
[1772985821695,1.28587593,1944.2,1943.5,0.50211937]
[1772985821902,1.28600823,1944.0,1943.6,0.5288585]
[1772985823123,1.28600823,1944.0,1943.4,0.5288585]
[1772985823825,2.73700823,1944.0,1943.4,0.5288585]
[1772985824024,2.73700823,1944.0,1943.5,0.5288585]
[1772985827634,2.73700823,1944.0,1943.6,0.5298585]
[1772985828206,2.73701219,1944.0,1943.6,0.5298585]
[1772985829235,5.14324563,1944.3,1943.6,0.5298585]
[1772985829418,1.452,1944.0,1943.6,0.5298585]
[1772985829613,1.452,1944.0,1943.7,0.5288585]
[1772985830115,5.14324563,1944.3,1943.7,0.5288585]
[1772985830438,1.453,1944.0,1943.7,0.5288585]
[1772985831307,1.28607438,1943.9,1943.7,0.5288585]
[1772985831508,1.28594353,1944.1,1943.7,0.5288585]
[1772985831732,1.453,1944.0,1943.7,0.5288585]
[1772985831914,1.453,1944.0,1943.8,0.5288585]
[1772985833834,2.73900901,1944.0,1943.8,0.5288585]
[1772985834035,2.73900901,1944.0,1943.6,0.5298585]
[1772985834515,2.73901366,1944.0,1943.7,0.5288585]
[1772985837219,1.453,1944.0,1943.8,0.5288585]
[1772985837414,1.28598017,1944.1,1943.8,0.5288585]
[1772985837742,2.74091572,1944.2,1943.8,0.5288585]
[1772985839647,1.28591572,1944.2,1943.8,0.5288585]
[1772985839847,1.455,1944.1,1943.8,0.5288585]
[1772985841215,1.28583852,1944.3,1943.9,0.5288585]
[1772985841421,1.07625095,1944.4,1943.9,0.49853217]
[1772985841747,5.14288289,1944.5,1943.9,0.49853217]
[1772985841748,5.14288289,1944.5,1944.0,0.49853217]
[1772985842745,5.29670928,1944.5,1944.0,0.49853217]
[1772985843051,0.15382639,1944.4,1944.0,0.49853217]
[1772985843746,1.2858098,1944.3,1944.0,0.49853217]
[1772985843952,1.28577948,1944.4,1944.0,0.49853217]
[1772985844632,0.002,1944.1,1944.0,0.49853217]
[1772985846934,1.28577948,1944.4,1944.1,0.46579455]
[1772985850125,1.457,1944.3,1944.1,0.46579455]
[1772985850319,1.457,1944.4,1944.1,0.46579455]
[1772985851152,2.74279381,1944.4,1944.1,0.46579455]
[1772985852554,2.74277694,1944.4,1944.1,0.46579455]
[1772985853125,2.74276008,1944.4,1944.1,0.46579455]
[1772985855160,0.15582639,1944.3,1943.9,0.46579455]
[1772985856528,1.28587593,1944.2,1943.9,0.46579455]
[1772985857622,1.28585524,1944.3,1943.9,0.46579455]
[1772985858019,1.459,1944.2,1944.0,0.001]
[1772985858258,1.459,1944.2,1944.1,0.46579455]
[1772985859256,2.74491117,1944.2,1944.1,0.46579455]
[1772985859551,1.28591117,1944.2,1944.1,0.44678995]
[1772985859753,2.74491117,1944.2,1944.0,0.001]
[1772985860228,2.74488077,1944.2,1944.0,0.001]
[1772985862030,2.74488477,1944.2,1944.0,0.001]
[1772985863753,2.74487878,1944.2,1944.0,0.001]
[1772985866360,2.74488319,1944.2,1944.0,0.001]
[1772985867159,1.28588319,1944.2,1944.0,0.001]
[1772985867330,2.74688319,1944.2,1944.0,0.001]
[1772985869552,0.5084976,1944.1,1944.0,0.001]
[1772985871463,5.14266837,1944.7,1944.0,0.001]
[1772985871464,0.5084976,1944.7,1944.0,0.001]
[1772985872659,0.5084976,1944.7,1944.1,0.001]
[1772985873443,0.002,1944.2,1944.1,0.001]
[1772985875959,0.5104976,1944.2,1944.1,0.001]
[1772985876270,0.5104976,1944.2,1943.7,1.28720671]
[1772985877546,0.5079976,1944.1,1943.7,0.001]
[1772985877942,1.28790916,1944.2,1943.7,0.001]
[1772985877943,0.5079976,1943.9,1943.7,0.001]
[1772985879954,0.5079976,1943.8,1943.7,0.001]
[1772985880348,0.5079976,1943.8,1943.5,0.001]
[1772985881152,0.5079976,1943.7,1943.5,0.001]
[1772985881864,0.5074976,1943.5,1943.3,0.001]
[1772985882159,0.5074976,1943.5,1942.9,0.001]
[1772985883998,1.79390286,1943.4,1942.9,0.001]
[1772985884196,0.5074976,1943.3,1942.9,0.001]
[1772985885396,0.5074976,1943.7,1942.9,0.001]
[1772985886083,0.5074976,1943.5,1942.9,0.001]
[1772985886991,0.5074976,1943.4,1942.9,0.001]
[1772985888097,0.65478774,1943.2,1942.9,0.001]
[1772985888762,0.65478774,1943.0,1942.8,0.001]
[1772985890389,0.65478774,1942.9,1942.8,0.001]
[1772985890886,1.94139613,1943.1,1942.8,0.001]
[1772985891055,0.65478774,1943.1,1942.8,0.001]
[1772985891465,3.39839632,1943.1,1942.8,0.001]
[1772985891890,2.11178774,1943.1,1942.8,0.001]
[1772985892494,0.65478774,1943.1,1942.8,0.001]
[1772985893491,3.39627066,1943.3,1942.8,0.001]
[1772985895359,0.65478774,1943.2,1942.8,0.001]
[1772985896009,0.65478774,1943.4,1942.8,0.001]
[1772985896166,0.65478774,1943.3,1942.8,0.001]
[1772985896567,2.11178774,1943.4,1942.8,0.001]
[1772985896900,0.65478774,1943.3,1942.8,0.001]
[1772985897269,1.457,1943.4,1942.8,0.001]
[1772985897270,0.65478774,1943.1,1942.8,0.001]
[1772985897464,1.94139272,1943.1,1942.8,0.001]
[1772985897903,0.65478774,1943.0,1942.8,0.001]
[1772985898362,0.65478774,1943.2,1942.8,0.001]
[1772985898566,1.459,1943.1,1942.8,0.001]
[1772985899001,2.11378774,1943.1,1942.8,0.001]
[1772985899530,1.46,1943.2,1942.8,0.001]
[1772985899796,0.65478774,1943.1,1942.8,0.001]
[1772985900314,0.65478774,1943.1,1942.5,0.001]
[1772985900813,0.65478774,1943.1,1942.9,0.001]
[1772985901702,1.94095783,1943.0,1942.9,0.001]
[1772985901902,0.65428774,1943.0,1942.9,0.001]
[1772985902104,1.462,1943.1,1942.9,0.001]
[1772985902786,0.002,1943.3,1942.9,0.001]
[1772985904798,0.002,1943.6,1942.9,0.001]
[1772985905112,0.00153886,1944.0,1942.9,0.001]
[1772985906227,0.6558266,1944.0,1942.9,0.001]
[1772985908029,0.65428774,1943.9,1943.0,0.14948499]
[1772985909934,0.65428774,1943.9,1943.1,1.28660388]
[1772985910139,0.00153886,1944.0,1943.1,1.28660388]
[1772985910733,0.6558266,1944.0,1943.1,1.28660388]
[1772985913535,0.65428774,1943.9,1943.1,1.28660388]
[1772985914637,0.65628774,1943.9,1943.1,1.28660388]
[1772985919153,0.65628774,1943.9,1943.2,0.14948499]
[1772985919362,0.002,1943.9,1943.2,0.14948499]
[1772985919848,0.00353886,1944.0,1943.2,0.14948499]
[1772985920436,0.002,1944.2,1943.2,0.21502099]
[1772985921061,0.002,1944.2,1943.4,0.14948499]
[1772985922426,0.65628774,1944.3,1943.4,0.21502099]
[1772985922427,0.002,1944.3,1943.4,0.21502099]
[1772985923027,1e-08,1944.4,1943.5,1.63205131]
[1772985923227,1e-08,1944.4,1943.7,0.14948499]
[1772985923422,1e-08,1944.4,1943.8,0.34571224]
[1772985925234,1e-08,1944.4,1943.9,1.28607438]
[1772985925647,1e-08,1944.4,1943.9,1.63178662]
[1772985926782,1e-08,1944.4,1943.9,1.28607438]
[1772985927176,1e-08,1944.4,1943.7,1.28620671]
[1772985927660,0.46075763,1944.1,1943.7,1.63191895]
[1772985929168,0.46075763,1944.1,1943.4,0.34571224]
[1772985929370,0.46075763,1944.0,1943.3,0.001]
[1772985929530,0.46075763,1944.0,1943.3,1.28747138]
[1772985930464,0.46075763,1944.0,1943.3,1.63318362]
[1772985930761,0.46075763,1944.0,1943.4,0.34571224]
[1772985932467,0.46075763,1944.0,1943.5,1.62243232]
[1772985932667,0.46600219,1944.2,1943.6,0.33609325]
[1772985934149,1e-08,1944.2,1943.7,0.48929768]
[1772985934572,1e-08,1944.2,1943.8,1.28614054]
[1772985935271,1e-08,1944.2,1943.8,1.77543822]
[1772985935569,1e-08,1944.2,1943.8,1.28614054]
[1772985936650,1e-08,1944.2,1943.7,5.6341031]
[1772985939378,1e-08,1944.2,1943.5,0.48929768]
[1772985939537,1e-08,1944.2,1943.4,1.77570294]
[1772985939962,1e-08,1944.2,1943.5,0.48929768]
[1772985940542,1e-08,1944.2,1943.8,0.001]
[1772985940944,0.46400219,1944.0,1943.8,0.001]
[1772985941169,0.46400219,1944.0,1943.7,0.001]
[1772985941566,0.46400219,1943.9,1943.7,0.001]
[1772985942977,1.28796785,1944.1,1943.7,0.001]
[1772985943150,0.46400219,1944.0,1943.7,0.001]
[1772985943578,0.46400219,1943.9,1943.7,0.001]
[1772985945782,0.46400219,1943.8,1943.7,0.001]
[1772985948082,1.75014273,1943.8,1943.7,0.001]
[1772985950165,3.14814273,1943.8,1943.7,0.001]
[1772985971013,3.15014273,1943.8,1943.7,0.001]
[1772985975821,0.46511726,1943.7,1943.3,0.001]
[1772985976694,1.75139015,1943.6,1943.3,0.001]
[1772985976888,1.92011726,1943.5,1943.3,0.001]
[1772985977287,1.455,1943.5,1943.3,0.475034]
[1772985977526,1.92011726,1943.5,1943.3,0.001]
[1772985978824,3.20649472,1943.5,1943.3,0.001]
[1772985984519,3.20649472,1943.5,1943.4,0.001]
[1772985985094,3.20849472,1943.5,1943.4,0.001]
[1772985986854,0.46511726,1943.4,1943.2,0.001]
[1772985987512,1.75158872,1943.3,1943.2,0.001]
[1772985990822,0.46511726,1943.2,1943.0,0.00253886]
[1772985991137,1.93011726,1943.1,1943.0,0.00253886]
[1772985992243,3.21672114,1943.1,1943.0,0.00253886]
[1772985994625,0.4835668,1943.0,1942.8,0.001]
[1772985995224,3.23517068,1943.1,1942.8,0.48522159]
[1772985997450,0.4835668,1943.0,1942.8,0.001]
[1772985999363,1.77229585,1943.0,1942.8,0.001]
[1772985999657,1.77229585,1943.0,1942.9,0.001]
[1772986000048,3.24229585,1943.0,1942.9,0.001]
[1772986001144,2.75872905,1943.0,1942.8,0.001]
[1772986001345,0.4835668,1942.9,1942.8,0.001]
[1772986003461,1.77030312,1942.9,1942.8,0.001]
[1772986009040,1.472,1943.0,1942.8,0.48522159]
[1772986009243,1.475,1942.9,1942.8,0.48522159]
[1772986009858,2.76173632,1942.9,1942.8,0.48522159]
[1772986011378,1.28873197,1943.0,1942.8,0.48522159]
[1772986011666,1.476,1942.9,1942.8,0.48522159]
[1772986013269,1.478,1942.9,1942.8,0.48522159]
[1772986014769,0.002,1943.0,1942.9,0.48422159]
[1772986025371,0.002,1943.0,1942.9,0.48522159]
[1772986028950,0.002,1943.2,1943.0,0.48722742]
[1772986029574,0.49909313,1943.1,1942.7,0.001]
[1772986031480,0.49909313,1942.9,1942.7,0.001]
[1772986033267,1.482,1943.0,1942.7,0.48922742]
[1772986033469,2.76867369,1943.0,1942.8,0.48822742]
[1772986034887,3.26776682,1943.0,1942.7,0.001]
[1772986035058,0.49909313,1942.9,1942.7,0.003]
[1772986035560,0.49909313,1942.8,1942.7,0.003]
[1772986039695,0.49909313,1942.8,1942.7,0.002]
[1772986040093,0.49909313,1942.8,1942.7,0.003]
[1772986040268,1.485,1942.9,1942.7,0.49022742]
[1772986040794,1.485,1942.9,1942.7,0.003]
[1772986040998,1.98409313,1942.9,1942.7,0.003]
[1772986041195,0.49909313,1942.8,1942.5,0.001]
[1772986042577,1.78593374,1942.8,1942.5,0.001]
[1772986045907,0.49909313,1942.7,1942.5,0.001]
[1772986046674,0.49909313,1942.7,1942.4,0.001]
[1772986047507,1.78601701,1942.7,1942.4,0.001]
[1772986047805,0.49909313,1942.6,1942.4,0.001]
[1772986049296,1.98409313,1942.5,1942.4,0.001]
[1772986052008,1.485,1942.5,1942.4,0.001]
[1772986053907,0.002,1942.9,1942.4,0.001]
[1772986053908,0.002,1943.0,1942.5,0.4546107]
[1772986054109,0.47131932,1943.0,1942.5,0.4546107]
[1772986054796,1.485,1942.9,1942.5,0.4546107]
[1772986057113,1.485,1942.9,1942.6,0.4546107]
[1772986058283,0.002,1943.0,1942.6,0.4546107]
[1772986059209,0.002,1943.0,1942.7,1.28686879]
[1772986059429,0.002,1943.0,1942.8,0.4546107]
[1772986062917,0.002,1943.0,1942.8,1.74140087]
[1772986064606,0.001,1942.9,1942.8,1.74140087]
[1772986065925,0.47031932,1942.9,1942.6,0.0011]
[1772986066126,0.47031932,1942.9,1942.5,0.0011]
[1772986067416,0.46931932,1942.7,1942.5,0.0011]